fUST/lending_fUST_20260421
["ID","MTS","AMOUNT","RATE_DAILY","PERIOD"]
[420898801,1776703247554,-200.0,0.00018512,120]
[420898803,1776703247590,-1420.66066811,0.00018516,120]
[420898804,1776703247631,-1420.66066811,0.00018701,120]
[420898806,1776703247668,-200.0,0.00018799,120]
[420898808,1776703247704,-1420.66066811,0.00018886,120]
[420898809,1776703247744,-213.02894122,0.0001902,120]
[420898811,1776703247780,-1420.66066811,0.00019071,120]
[420898813,1776703247825,-255.0,0.0001966,120]
[420898814,1776703247860,-376.0,0.00019696,120]
[420898816,1776703247895,-225.0,0.00019696,120]
[420898818,1776703247933,-169.0,0.00019696,120]
[420898824,1776703248218,-170.0,0.00019696,120]
[420898825,1776703248261,-200.0,0.00019878,120]
[420898827,1776703248296,-656.18436234,0.0002,120]
[420898829,1776703248336,-200.0,0.00020507,120]
[420898830,1776703248371,-200.0,0.00020586,120]
[420898832,1776703248405,-255.0,0.00020643,120]
[420898834,1776703248441,-200.0,0.00020667,120]
[420898835,1776703248475,-376.0,0.0002068,120]
[420898837,1776703248511,-225.0,0.0002068,120]
[420898838,1776703248546,-169.0,0.0002068,120]
[420898840,1776703248582,-170.0,0.0002068,120]
[420898842,1776703248618,-200.0,0.00020713,120]
[420898843,1776703248654,-1073.0,0.0002079,120]
[420898845,1776703248688,-644.0,0.0002079,120]
[420898846,1776703248723,-387.0,0.0002079,120]
[420898848,1776703248760,-232.0,0.0002079,120]
[420898850,1776703248795,-200.0,0.00020916,120]
[420898851,1776703248831,-200.0,0.00020946,120]
[420898853,1776703248869,-200.0,0.00021517,120]
[420898855,1776703248904,-200.0,0.0002161,120]
[420898856,1776703248939,-200.0,0.00021641,120]
[420898858,1776703248973,-255.0,0.00021675,120]
[420898859,1776703249009,-376.0,0.00021714,120]
[420898861,1776703249043,-225.0,0.00021714,120]
[420898863,1776703249077,-169.0,0.00021714,120]
[420898864,1776703249118,-170.0,0.00021714,120]
[420898866,1776703249154,-1073.0,0.00021829,120]
[420898868,1776703249190,-644.0,0.00021829,120]
[420898869,1776703249228,-387.0,0.00021829,120]
[420898871,1776703249264,-232.0,0.00021829,120]
[420898873,1776703249301,-200.0,0.00021957,120]
[420898874,1776703249336,-268.0,0.00022,120]
[420898876,1776703249371,-200.0,0.00022064,120]
[420898877,1776703249408,-200.0,0.00022179,120]
[420898879,1776703249447,-200.0,0.00022264,120]
[420898881,1776703249483,-200.0,0.0002229,120]
[420898882,1776703249518,-885.0,0.00022317,120]
[420898884,1776703249554,-354.0,0.00022362,120]
[420898886,1776703249591,-212.0,0.00022362,120]
[420898887,1776703249628,-159.0,0.00022362,120]
[420898889,1776703249665,-160.0,0.00022362,120]
[420898890,1776703249703,-683.0,0.00022436,120]
[420898892,1776703249740,-175.0,0.0002248,120]
[420898894,1776703249776,-176.0,0.0002248,120]
[420898895,1776703249814,-342.0,0.00022492,120]
[420898897,1776703249850,-354.0,0.00022492,120]
[420898899,1776703249887,-205.0,0.00022493,120]
[420898900,1776703249922,-212.0,0.00022493,120]
[420898902,1776703249958,-176.0,0.00022493,120]
[420898903,1776703249993,-159.0,0.00022493,120]
[420898905,1776703250028,-160.0,0.00022511,120]
[420898907,1776703250063,-177.0,0.00022511,120]
[420898908,1776703250098,-200.0,0.00022543,120]
[420898910,1776703250132,-200.0,0.00022563,120]
[420898912,1776703250165,-255.0,0.00022759,120]
[420898913,1776703250200,-376.0,0.000228,120]
[420898919,1776703250446,-225.0,0.000228,120]
[420898921,1776703250480,-169.0,0.000228,120]
[420898922,1776703250515,-170.0,0.000228,120]
[420898923,1776703250553,-1073.0,0.00022921,120]
[420898924,1776703250590,-644.0,0.00022921,120]
[420898925,1776703250628,-387.0,0.00022921,120]
[420898926,1776703250668,-232.0,0.00022921,120]
[420898927,1776703250707,-200.0,0.00023179,120]
[420898928,1776703250743,-440.25308727,0.000232,120]
[420898929,1776703250781,-200.0,0.00023257,120]
[420898930,1776703250817,-683.0,0.00023557,120]
[420898931,1776703250853,-175.0,0.00023604,120]
[420898933,1776703250891,-176.0,0.00023604,120]
[420898935,1776703250927,-342.0,0.00023616,120]
[420898936,1776703250965,-205.0,0.00023617,120]
[420898938,1776703251003,-176.0,0.00023617,120]
[420898940,1776703251038,-177.0,0.00023637,120]
[420898941,1776703251074,-200.0,0.00023688,120]
[420898943,1776703251110,-200.0,0.00023732,120]
[420898945,1776703251146,-200.0,0.00023759,120]
[420898946,1776703251182,-200.0,0.00023811,120]
[420898948,1776703251218,-200.0,0.00023886,120]
[420898949,1776703251251,-255.0,0.00023897,120]
[420898951,1776703251286,-181.76352864,0.00024,120]
[420898953,1776703251320,-150.60277069,0.00024,120]
[420898954,1776703251357,-319.28645887,0.00024,120]
[420898956,1776703251393,-1073.0,0.00024067,120]
[420898958,1776703251431,-644.0,0.00024067,120]
[420898959,1776703251468,-387.0,0.00024067,120]
[420898961,1776703251503,-232.0,0.00024067,120]
[420898962,1776703251540,-200.0,0.00024089,120]
[420898964,1776703251578,-200.0,0.0002414,120]
[420898966,1776703251615,-200.0,0.0002433,120]
[420898967,1776703251654,-200.0,0.00024598,120]
[420899565,1776703290474,200.0,0.00023543,120]
[420901302,1776703410749,200.0,0.0002381,120]
[420902075,1776703470900,200.0,0.00024117,120]
[420902987,1776703539849,175.0,0.00021651,120]
[420903023,1776703542773,175.0,0.00022734,120]
[420903055,1776703544973,175.0,0.0002387,120]
[420903149,1776703551974,587.3778,0.00026357,120]
[420903150,1776703552015,587.3778,0.00026357,120]
[420903152,1776703552060,587.3778,0.00026357,120]
[420903153,1776703552105,587.3778,0.00026357,120]
[420903155,1776703552147,587.3778,0.00026357,120]
[420903156,1776703552188,587.3778,0.00026357,120]
[420903158,1776703552233,587.3778,0.00026357,120]
[420903160,1776703552283,587.3778,0.00026357,120]
[420903161,1776703552325,587.3778,0.00026357,120]
[420903163,1776703552376,587.3778,0.00026357,120]
[420903165,1776703552418,587.3778,0.00026357,120]
[420903166,1776703552470,587.3778,0.00026357,120]
[420903168,1776703552511,587.3778,0.00026357,120]
[420903169,1776703552559,587.3778,0.00026357,120]
[420903739,1776703608341,4298.67,0.00026356,120]
[420903740,1776703608599,4298.67,0.00026356,120]
[420903741,1776703608974,4298.67,0.00026356,120]
[420903742,1776703609197,4298.67,0.00026356,120]
[420903743,1776703609422,4298.67,0.00026356,120]
[420903744,1776703609663,4298.67,0.00026356,120]
[420903745,1776703609892,4298.67,0.00026356,120]
[420903746,1776703610144,4298.67,0.00026356,120]
[420903747,1776703610385,4298.67,0.00026356,120]
[420903748,1776703610604,4298.67,0.00026356,120]
[420903749,1776703610843,4298.67,0.00026356,120]
[420903750,1776703611077,4298.67,0.00026356,120]
[420903752,1776703611313,4298.67,0.00026356,120]
[420903753,1776703611547,4298.67,0.00026356,120]
[420903754,1776703611792,4298.67,0.00026356,120]
[420903755,1776703612014,4298.67,0.00026356,120]
[420903756,1776703612259,4298.67,0.00026356,120]
[420903757,1776703612507,4298.67,0.00026356,120]
[420903758,1776703613091,4298.67,0.00026356,120]
[420903759,1776703613344,4298.67,0.00026356,120]
[420903760,1776703613583,4298.67,0.00026356,120]
[420903761,1776703613818,4298.67,0.00026356,120]
[420903762,1776703614051,4298.67,0.00026356,120]
[420903763,1776703614283,4298.78505029,0.00026356,120]
[420903774,1776703717131,500.0,0.00026356,120]
[420904389,1776703839043,-5000.0,0.00010095,2]
[420904390,1776703839053,-509.0,0.00010095,2]
[420904391,1776703839063,-1200.0,0.00010197,2]
[420904392,1776703839072,-177.26174537,0.00010198,2]
[420904393,1776703839082,-4622.745,0.00010198,2]
[420904394,1776703839091,-215.4374073,0.00010617,2]
[420904395,1776703839100,-236.66,0.000113,2]
[420904396,1776703839110,-157.77,0.000115,2]
[420904398,1776703839120,-281.67,0.00011682,2]
[420904399,1776703839129,-300.0,0.00011686,2]
[420904400,1776703839139,-500.0,0.00011687,2]
[420904401,1776703839149,-500.0,0.00011687,2]
[420904402,1776703839158,-500.0,0.00011687,2]
[420904403,1776703839167,-500.0,0.00011687,2]
[420904404,1776703839176,-500.0,0.00011687,2]
[420904405,1776703839185,-500.0,0.00011687,2]
[420904407,1776703839195,-500.0,0.00011687,2]
[420904408,1776703839204,-500.0,0.00011687,2]
[420904409,1776703839213,-547.11516477,0.00011687,2]
[420904410,1776703839222,-500.0,0.00011687,2]
[420904411,1776703839232,-500.0,0.00011687,2]
[420904412,1776703839241,-500.0,0.00011687,2]
[420904413,1776703839251,-412.56551831,0.00011687,2]
[420904414,1776703839260,-500.0,0.00011687,2]
[420904416,1776703839269,-576.61884765,0.00011687,2]
[420904417,1776703839278,-500.0,0.00011687,2]
[420904418,1776703839288,-109406.09286265,0.00011688,2]
[420904419,1776703839297,-151.0,0.000117,2]
[420904420,1776703839307,-151.0,0.000117,2]
[420904421,1776703839316,-151.0,0.000117,2]
[420904422,1776703839327,-151.0,0.000117,2]
[420904424,1776703839337,-151.0,0.000117,2]
[420904425,1776703839346,-151.0,0.000117,2]
[420904426,1776703839356,-151.0,0.000117,2]
[420904427,1776703839366,-267.21168073,0.00011786,2]
[420904428,1776703839375,-855.85189309,0.00011786,2]
[420904429,1776703839384,-546.10332318,0.00011786,2]
[420904430,1776703839393,-855.85189309,0.00011786,2]
[420904431,1776703839403,-855.85189309,0.00011786,2]
[420904432,1776703839412,-855.85189309,0.00011786,2]
[420904434,1776703839422,-855.85189309,0.00011786,2]
[420904435,1776703839432,-855.85189309,0.00011786,2]
[420904436,1776703839441,-855.85189309,0.00011786,2]
[420904437,1776703839450,-855.85189309,0.00011786,2]
[420904438,1776703839459,-855.85189309,0.00011786,2]
[420904439,1776703839468,-855.85189309,0.00011786,2]
[420904440,1776703839478,-855.85189309,0.00011786,2]
[420904442,1776703839487,-855.85189309,0.00011786,2]
[420904443,1776703839496,-855.85189309,0.00011786,2]
[420904444,1776703839505,-855.85189309,0.00011786,2]
[420904445,1776703839515,-855.85189309,0.00011786,2]
[420904446,1776703839524,-855.85189309,0.00011786,2]
[420904447,1776703839534,-855.85189309,0.00011786,2]
[420904448,1776703839543,-1158605.7982704,0.00011789,2]
[420904450,1776703839558,-4869.65549784,0.00011789,2]
[420904451,1776703839569,-41666.40038653,0.00011789,2]
[420904472,1776703841042,-3484.52239394,0.00011789,2]
[420904473,1776703841053,-6490.6388292,0.00011789,2]
[420904557,1776703847110,-709.05352591,0.00011671,2]
[420904559,1776703848328,300.0,0.00026356,120]
[420904764,1776703882118,500.0,0.00026356,120]
[420904765,1776703882358,500.0,0.00026356,120]
[420904766,1776703882593,500.0,0.00026356,120]
[420904768,1776703882817,500.0,0.00026356,120]
[420904769,1776703883052,500.0,0.00026356,120]
[420904770,1776703883305,500.0,0.00026356,120]
[420904771,1776703883550,500.0,0.00026356,120]
[420904772,1776703883802,482.00794936,0.00026356,120]
[420904789,1776703931397,500.0,0.00026359,120]
[420904790,1776703932715,4450.07632303,0.00026359,120]
[420904804,1776703964550,329.15696413,0.00026359,120]
[420904805,1776703964835,329.15696413,0.00026359,120]
[420904806,1776703965130,329.15696413,0.00026359,120]
[420904807,1776703965419,329.15696413,0.00026359,120]
[420904808,1776703965703,329.15696413,0.00026359,120]
[420904809,1776703966018,329.15696413,0.00026359,120]
[420904814,1776703966329,329.15696413,0.00026359,120]
[420904835,1776703966640,329.15696413,0.00026359,120]
[420904836,1776703966925,329.15696413,0.00026359,120]
[420904886,1776703967456,329.15696413,0.00026359,120]
[420904919,1776703967754,329.15696413,0.00026359,120]
[420904950,1776703968049,329.15696413,0.00026359,120]
[420904985,1776703968361,329.15696413,0.00026359,120]
[420905013,1776703968656,329.15696413,0.00026359,120]
[420905039,1776703968956,329.15696413,0.00026359,120]
[420906218,1776703995842,500.0,0.00026359,120]
[420906253,1776704092188,500.0,0.00026359,120]
[420906254,1776704092291,500.0,0.00026359,120]
[420906255,1776704092535,361.73889212,0.00026359,120]
[420906289,1776704157709,500.0,0.00026359,120]
[420906295,1776704255377,500.0,0.00026302,120]
[420906305,1776704446017,500.0,0.00026302,120]
[420906306,1776704446256,500.0,0.00026302,120]
[420906307,1776704446630,277.83,0.00026302,120]
[420906421,1776704462450,-683.04836346,7.6e-05,2]
[420906422,1776704498272,-3837.01450383,0.00011504,2]
[420906423,1776704498313,-286.48049617,0.00011504,2]
[420906424,1776704527514,-876.505,0.00011504,2]
[420906425,1776704527545,-177.56791836,0.00011562,2]
[420906426,1776704527592,-2411.91703057,0.00011689,2]
[420906427,1776704556298,500.0,0.00026302,120]
[420906428,1776704559474,-1054.07291836,0.00011572,2]
[420906430,1776704749046,150.0,0.000135,120]
[420906431,1776704749185,150.0,0.00013905,120]
[420906433,1776704845455,500.0,0.00026302,120]
[420906434,1776704850642,200.0,0.0001916,120]
[420906435,1776704913295,500.0,0.00026302,120]
[420906436,1776704970551,200.0,0.00019845,120]
[420906437,1776704985154,2132.57437122,0.00026302,120]
[420906468,1776705031820,-5000.0,0.00011356,2]
[420906470,1776705031829,-178.07195065,0.00011529,2]
[420906472,1776705031839,-382.27232622,0.00011587,2]
[420906474,1776705031849,-187.04817651,0.00011587,2]
[420906476,1776705031858,-847.0988013,0.00011587,2]
[420906478,1776705031867,-847.0988013,0.00011587,2]
[420906480,1776705031876,-847.0988013,0.00011587,2]
[420906482,1776705031885,-847.0988013,0.00011587,2]
[420906484,1776705031894,-847.0988013,0.00011587,2]
[420906486,1776705031903,-847.0988013,0.00011587,2]
[420906488,1776705031913,-847.0988013,0.00011587,2]
[420906490,1776705031922,-847.0988013,0.00011587,2]
[420906492,1776705031930,-847.0988013,0.00011587,2]
[420906494,1776705031939,-847.0988013,0.00011587,2]
[420906496,1776705031949,-847.0988013,0.00011587,2]
[420906498,1776705031958,-847.0988013,0.00011587,2]
[420906500,1776705031969,-847.0988013,0.00011587,2]
[420906502,1776705031978,-847.0988013,0.00011587,2]
[420906504,1776705031987,-214.68896924,0.00011587,2]
[420906526,1776705032182,-632.40983206,0.00011587,2]
[420906528,1776705032191,-404.28585387,0.00011587,2]
[420906530,1776705032202,-442.81294743,0.00011587,2]
[420906532,1776705032211,-390.22790643,0.00011587,2]
[420907080,1776705038038,-456.87089487,0.00011587,2]
[420907082,1776705038048,-847.0988013,0.00011587,2]
[420907084,1776705038058,-847.0988013,0.00011587,2]
[420907086,1776705038068,-847.0988013,0.00011587,2]
[420907088,1776705038078,-847.0988013,0.00011587,2]
[420907090,1776705038087,-171.90168498,0.00011587,2]
[420907092,1776705038096,-212.50727981,0.00011587,2]
[420907094,1776705038108,-508.51320529,0.00011587,2]
[420907096,1776705038118,-847.0988013,0.00011587,2]
[420907098,1776705038127,-847.0988013,0.00011587,2]
[420907100,1776705038136,-847.0988013,0.00011587,2]
[420907101,1776705038146,-864.04077735,0.00011587,2]
[420907103,1776705038155,-864.04077735,0.00011587,2]
[420907105,1776705038165,-864.04077735,0.00011587,2]
[420907107,1776705038174,-864.04077735,0.00011587,2]
[420907109,1776705038183,-864.04077735,0.00011587,2]
[420907111,1776705038193,-308767.44655551,0.00011588,2]
[420907114,1776705038212,-151.5,0.00011426,30]
[420907115,1776705038221,-836.73170697,0.00011588,2]
[420907117,1776705038232,-331.26605577,0.00011588,2]
[420907120,1776705038251,-4991.96987597,0.00011588,2]
[420907122,1776705038262,-31747.42952058,0.00011588,2]
[420907124,1776705038274,-10209.98579081,0.00011588,2]
[420907289,1776705040193,-151.5,0.00011426,30]
[420907291,1776705040202,-151.5,0.00011426,30]
[420907293,1776705040212,-151.5,0.00011426,30]
[420907295,1776705040221,-193.68145955,0.00011426,30]
[420907297,1776705040232,-66.02385561,0.00011426,30]
[420907299,1776705040242,-287.41114439,0.00011588,2]
[420907301,1776705040253,-2357.72519592,0.00011588,2]
[420907511,1776705046033,-6861.43968879,0.00011588,2]
[420907512,1776705046237,-105982.92209153,0.00011588,2]
[420907523,1776705154770,500.0,0.00026303,120]
[420907526,1776705452886,500.0,0.0002637,120]
[420907527,1776705524435,663.4803969,0.0002637,120]
[420907528,1776705524927,663.4803969,0.0002637,120]
[420907529,1776705525075,663.4803969,0.0002637,120]
[420907530,1776705525373,663.4803969,0.0002637,120]
[420907531,1776705525670,663.4803969,0.0002637,120]
[420907532,1776705525970,663.4803969,0.0002637,120]
[420907533,1776705526272,663.4803969,0.0002637,120]
[420907534,1776705526564,663.4803969,0.0002637,120]
[420907535,1776705526873,663.4803969,0.0002637,120]
[420907536,1776705527163,663.4803969,0.0002637,120]
[420907537,1776705527481,663.4803969,0.0002637,120]
[420907538,1776705527765,663.4803969,0.0002637,120]
[420907539,1776705528061,663.4803969,0.0002637,120]
[420907540,1776705528404,663.4803969,0.0002637,120]
[420907541,1776705528712,663.4803969,0.0002637,120]
[420907542,1776705529052,663.4803969,0.0002637,120]
[420907543,1776705529879,663.4803969,0.0002637,120]
[420907544,1776705530477,663.4803969,0.0002637,120]
[420907545,1776705531269,663.4803969,0.0002637,120]
[420907546,1776705531374,663.4803969,0.0002637,120]
[420907547,1776705531676,663.4803969,0.0002637,120]
[420907548,1776705532019,663.4803969,0.0002637,120]
[420907549,1776705532335,663.4803969,0.0002637,120]
[420907550,1776705532656,663.4803969,0.0002637,120]
[420907551,1776705532954,663.4803969,0.0002637,120]
[420907552,1776705533262,663.4803969,0.0002637,120]
[420907553,1776705533571,663.4803969,0.0002637,120]
[420907554,1776705533875,663.4803969,0.0002637,120]
[420907555,1776705534175,663.4803969,0.0002637,120]
[420907556,1776705644462,221.16013228,0.0002637,120]
[420907557,1776705644806,221.16013228,0.0002637,120]
[420907558,1776705645111,221.16013228,0.0002637,120]
[420907561,1776705745344,500.0,0.0002637,120]
[420907563,1776705935403,5000.0,0.0002637,120]
[420907567,1776706045162,500.0,0.0002637,120]
[420907571,1776706216022,5240.0,0.00024,120]
[420907589,1776706231964,-1051.43828814,9.969e-05,2]
[420907606,1776706238630,-3948.56171186,9.969e-05,2]
[420907607,1776706238639,-373.0,9.969e-05,2]
[420907608,1776706238649,-4120.64900287,0.0001007,2]
[420907609,1776706238658,-1046.29468411,0.0001007,2]
[420907610,1776706238667,-183.90021105,0.00010495,2]
[420907611,1776706238677,-314.20629763,0.000106,2]
[420907612,1776706238686,-151.0,0.00011353,2]
[420907613,1776706238696,-151.0,0.00011353,2]
[420907614,1776706238704,-151.0,0.00011353,2]
[420907615,1776706238714,-500.0,0.00011577,2]
[420907616,1776706238723,-600.59305013,0.00011577,2]
[420907617,1776706238732,-366.14792305,0.00011577,2]
[420907618,1776706238742,-600.59305013,0.00011577,2]
[420907619,1776706238751,-600.59305013,0.00011577,2]
[420907620,1776706238760,-600.59305013,0.00011577,2]
[420907621,1776706238769,-600.59305013,0.00011577,2]
[420907622,1776706238778,-600.59305013,0.00011577,2]
[420907623,1776706238788,-600.59305013,0.00011577,2]
[420907624,1776706238797,-600.59305013,0.00011577,2]
[420907625,1776706238807,-600.59305013,0.00011577,2]
[420907626,1776706238817,-600.59305013,0.00011577,2]
[420907627,1776706238826,-600.59305013,0.00011577,2]
[420907628,1776706238835,-600.59305013,0.00011577,2]
[420907629,1776706238844,-600.59305013,0.00011577,2]
[420907630,1776706238854,-600.59305013,0.00011577,2]
[420907631,1776706238863,-600.59305013,0.00011577,2]
[420907632,1776706238872,-600.59305013,0.00011577,2]
[420907633,1776706238882,-500.0,0.00011577,2]
[420907634,1776706238891,-500.0,0.00011577,2]
[420907635,1776706238901,-600.59305013,0.00011577,2]
[420907636,1776706238910,-500.0,0.00011577,2]
[420907637,1776706238920,-500.0,0.00011577,2]
[420907638,1776706238930,-321.05902551,0.00011577,2]
[420907639,1776706238939,-500.0,0.00011577,2]
[420907640,1776706238949,-500.0,0.00011577,2]
[420907641,1776706238958,-500.0,0.00011577,2]
[420907642,1776706238968,-260.35639534,0.00011577,2]
[420907643,1776706238977,-565.03369689,0.00011577,2]
[420907644,1776706238986,-246.54020245,0.00011577,2]
[420907645,1776706238996,-500.0,0.00011577,2]
[420907646,1776706239006,-500.0,0.00011577,2]
[420907647,1776706239015,-500.0,0.00011577,2]
[420907648,1776706239024,-217.92341978,0.00011577,2]
[420907649,1776706239033,-500.0,0.00011577,2]
[420907650,1776706239042,-500.0,0.00011577,2]
[420907651,1776706239052,-500.0,0.00011577,2]
[420907652,1776706239061,-500.0,0.00011577,2]
[420907653,1776706239070,-500.0,0.00011577,2]
[420907654,1776706239080,-238.32483937,0.00011577,2]
[420907655,1776706239092,-261.67516063,0.00011577,2]
[420907656,1776706239101,-500.0,0.00011577,2]
[420907657,1776706239110,-500.0,0.00011577,2]
[420907658,1776706239120,-500.0,0.00011577,2]
[420907659,1776706239129,-500.0,0.00011577,2]
[420907660,1776706239139,-500.0,0.00011577,2]
[420907661,1776706239148,-500.0,0.00011577,2]
[420907662,1776706239157,-500.0,0.00011577,2]
[420907663,1776706239167,-500.0,0.00011577,2]
[420907664,1776706239177,-500.0,0.00011577,2]
[420907665,1776706239186,-500.0,0.00011577,2]
[420907666,1776706239197,-600.59305013,0.00011577,2]
[420907667,1776706239206,-653.144942,0.00011577,2]
[420907668,1776706239215,-453.77065341,0.00011577,2]
[420907669,1776706239226,-199.37428859,0.00011577,2]
[420907670,1776706239235,-653.144942,0.00011577,2]
[420907671,1776706239245,-653.144942,0.00011577,2]
[420907672,1776706239254,-653.144942,0.00011577,2]
[420907673,1776706239265,-653.144942,0.00011577,2]
[420907674,1776706239274,-653.144942,0.00011577,2]
[420907675,1776706239284,-653.144942,0.00011577,2]
[420907676,1776706239293,-1067.77516378,0.00011578,2]
[420907677,1776706239679,-5382.06751572,0.00011578,2]
[420907678,1776706239699,-1202379.38693933,0.00011578,2]
[420907679,1776706239709,-60845.09744988,0.00011579,2]
[420907688,1776706240680,-12641.75347559,0.00011579,2]
[420907689,1776706240692,-1631.0,0.00011579,2]
[420907716,1776706246613,-1443.25030795,0.00011579,2]
[420907717,1776706246625,-2117.33197332,0.00011579,2]
[420907718,1776706246636,-3232.90007557,0.00011579,2]
[420907727,1776706300583,-261.926,0.00011347,2]
[420907728,1776706300617,-917.148,0.00011463,2]
[420907729,1776706345048,500.0,0.0002637,120]
[420907732,1776706448837,23377.99501554,0.0002637,120]
[420907733,1776706569260,200.0,0.0002637,120]
[420907737,1776706799078,222.0,0.00026272,120]
[420907738,1776706835318,511.36,0.00026272,120]
[420907739,1776706835551,511.36,0.00026272,120]
[420907740,1776706835785,511.36,0.00026272,120]
[420907741,1776706836015,511.36,0.00026272,120]
[420907742,1776706836260,511.36,0.00026272,120]
[420907743,1776706836521,511.36,0.00026272,120]
[420907744,1776706836764,511.36,0.00026272,120]
[420907745,1776706837467,511.36,0.00026272,120]
[420907746,1776706837781,511.36,0.00026272,120]
[420907747,1776706837946,511.36,0.00026272,120]
[420907748,1776706838184,511.36,0.00026272,120]
[420907749,1776706838420,511.36,0.00026272,120]
[420907750,1776706838649,511.36,0.00026272,120]
[420907751,1776706838931,511.36,0.00026272,120]
[420907752,1776706839378,511.36,0.00026272,120]
[420907753,1776706839432,511.36,0.00026272,120]
[420907754,1776706839677,511.36,0.00026272,120]
[420907755,1776706839905,511.36,0.00026272,120]
[420907756,1776706840133,511.36,0.00026272,120]
[420907757,1776706840360,511.36,0.00026272,120]
[420907758,1776706840586,511.36,0.00026272,120]
[420907759,1776706840819,511.36,0.00026272,120]
[420907760,1776706841041,511.36,0.00026272,120]
[420907761,1776706841368,511.59794204,0.00026272,120]
[420907763,1776706978732,2890.21,0.00026272,120]
[420907766,1776707156874,1874.93,0.00026272,120]
[420907767,1776707157126,1874.93,0.00026272,120]
[420907768,1776707157377,1874.93,0.00026272,120]
[420907769,1776707157595,1874.93,0.00026272,120]
[420907770,1776707157822,1874.93,0.00026272,120]
[420907771,1776707158048,1874.93,0.00026272,120]
[420907772,1776707158274,1874.93,0.00026272,120]
[420907773,1776707158528,1874.93,0.00026272,120]
[420907774,1776707158756,1874.93,0.00026272,120]
[420907775,1776707158995,1874.93,0.00026272,120]
[420907776,1776707159229,1874.93,0.00026272,120]
[420907777,1776707159476,1874.93,0.00026272,120]
[420907778,1776707159748,1874.93,0.00026272,120]
[420907779,1776707159978,1874.93,0.00026272,120]
[420907780,1776707160203,1874.93,0.00026272,120]
[420907781,1776707160441,1874.93,0.00026272,120]
[420907782,1776707160885,1874.93,0.00026272,120]
[420907783,1776707161300,1874.93,0.00026272,120]
[420907784,1776707161558,1874.93,0.00026272,120]
[420907785,1776707161612,1874.93,0.00026272,120]
[420907786,1776707161843,1874.93,0.00026272,120]
[420907787,1776707162084,1874.93,0.00026272,120]
[420907788,1776707162321,1874.93,0.00026272,120]
[420907789,1776707162548,1875.11,0.00026272,120]
[420907824,1776707438480,-473.57376399,0.00010789,2]
[420907827,1776707440809,-1202.34291597,0.00010789,2]
[420907875,1776707446788,-819.51562325,0.00010789,2]
[420907884,1776707998895,7391.07410937,0.00026273,120]
[420907887,1776708062506,-4935.37447876,7.6e-05,2]
[420908038,1776708638911,-164.424937,4.626e-05,2]
[420908039,1776708638922,-1125.28148236,7.375e-05,2]
[420908040,1776708638933,-3874.71851764,7.375e-05,2]
[420908041,1776708638942,-199.65183946,7.469e-05,2]
[420908042,1776708638952,-5537.43095529,7.6e-05,2]
[420908043,1776708638963,-3626.70358575,7.6e-05,2]
[420908054,1776708641138,-6981.63,7.6e-05,2]
[420908076,1776708643577,-10121.57684148,7.6e-05,2]
[420908077,1776708643629,-405.85753468,7.6e-05,2]
[420908078,1776708643639,-261.926,7.6e-05,2]
[420908079,1776708643648,-200.0,9.03e-05,2]
[420908080,1776708643657,-200.0,9.03e-05,2]